[Event "IM Marmaris Karia VIII 2019"]
[Site "Marmaris"]
[Date "2019.07.31"]
[Round "9.1"]
[White "Dedebas, Emre Emin"]
[Black "Odeev, Handszar"]
[Result "1/2-1/2"]
[ECO "B07"]
[WhiteElo "2301"]
[BlackElo "2360"]
[Annotator "NA"]
[PlyCount "61"]
[EventDate "2019.07.29"]
[EventType "schev"]
[EventCountry "TUR"]
[SourceTitle "playchess.com"]
[Source "ChessBase"]
[SourceQuality "1"]
[TimeControl "5400+30"]

1. d4 {[%emt 0:01:30]} Nf6 {[%emt 0:04:30]} 2. Bf4 {[%emt 0:00:30]} g6 {[%emt 0:00:30]} 3. Nc3 {[%emt 0:00:30]} d6 {[%emt 0:11:30]} 4. e4 {[%emt 0:00:00]} c6 {[%emt 0:02:30]} 5. Qd2 {[%emt 0:01:00]} b5 {[%emt 0:00:30]} 6. Bd3 {[%emt 0:01:30]} Bg7 {[%emt 0:06:30]} 7. Bh6 {[%emt 0:01:30]} Bxh6 {[%emt 0:02:30]} 8. Qxh6 {[%emt 0:00:30]} e5 {[%emt 0:00:00]} 9. dxe5 {[%emt 0:23:30]} dxe5 {[%emt 0:00:00]} 10. Nf3 {[%emt 0:00:30]} Nbd7 {[%emt 0:01:30]} 11. a4 {[%emt 0:07:30]} b4 12. Ne2 {[%emt 0:00:30]} Qe7 {[%emt 0:09:00]} 13. h3 {[%emt 0:11:30]} a5 {[%emt 0:12:30]} 14. Ng3 {[%emt 0:04:30]} Ng8 {[%emt 0:08:30]} 15. Qe3 {[%emt 0:04:30]} Ngf6 {[%emt 0:03:30]} 16. O-O {[%emt 0:03:30]} O-O {[%emt 0:00:30]} 17. Qg5 {[%emt 0:00:30]} Kh8 {[%emt 0:00:30]} 18. Rfd1 {[%emt 0:08:30]} Re8 {[%emt 0:06:30]} 19. b3 {[%emt 0:07:50]} Nc5 {[%emt 0:01:30]} 20. Bc4 {[%emt 0:05:26]} Ra7 {[%emt 0:07:55]} 21. Qe3 {[%emt 0:01:50]} Kg7 {[%emt 0:11:59]} 22. Ng5 {[%emt 0:06:35]} Rf8 {[%emt 0:00:52]} 23. Rd2 {[%emt 0:00:27]} h6 {[%emt 0:01:26]} 24. Nf3 {[%emt 0:02:14]} Rd7 {[%emt 0:00:39]} 25. Rxd7 {[%emt 0:03:24]} Nfxd7 {[%emt 0:01:56]} 26. Rd1 {[%emt 0:00:24]} Nb6 {[%emt 0:01:10]} 27. Bf1 {[%emt 0:00:22]} f6 {[%emt 0:00:48]} 28. Be2 {[%emt 0:02:37]} Be6 {[%emt 0:00:23]} 29. Nh4 {[%emt 0:00:25]} Kh7 {[%emt 0:01:18]} 30. Bg4 {[%emt 0:00:50]} Rb8 {[%emt 0:01:14]} 31. Nf3 {[%emt 0:00:34]} 1/2-1/2

[Event "IM Marmaris Karia VIII 2019"]
[Site "Marmaris"]
[Date "2019.07.31"]
[Round "9.4"]
[White "Yazici, Ugur Doga"]
[Black "Benidze, Davit"]
[Result "0-1"]
[ECO "B06"]
[WhiteElo "2143"]
[BlackElo "2469"]
[Annotator "ChessBase"]
[PlyCount "106"]
[EventDate "2019.07.29"]
[EventType "schev"]
[EventCountry "TUR"]
[SourceTitle "playchess.com"]
[Source "ChessBase"]
[SourceQuality "1"]
[TimeControl "5400+30"]

1. e4 {[%emt 0:00:30]} g6 {[%emt 0:05:30]} 2. d4 {[%emt 0:00:00]} Bg7 {[%emt 0:00:30]} 3. Nc3 {[%emt 0:00:00]} d6 {[%emt 0:00:00]} 4. Nf3 {[%emt 0:00:30]} a6 {[%emt 0:00:00]} 5. Be2 {[%emt 0:01:30]} b5 {[%emt 0:05:30]} 6. a4 {[%emt 0:02:30]} b4 {[%emt 0:00:30]} 7. Nd5 {[%emt 0:00:30]} Bb7 {[%emt 0:04:30]} 8. a5 {[%emt 0:03:30]} e6 {[%emt 0:00:00]} 9. Nxb4 {[%emt 0:00:30]} Bxe4 {[%emt 0:00:00]} 10. c3 {[%emt 0:00:30]} Ne7 {[%emt 0:00:30]} 11. O-O {[%emt 0:02:30]} O-O {[%emt 0:00:30]} 12. Nd2 {[%emt 0:00:30]} Bb7 {[%emt 0:00:00]} 13. Bf3 {[%emt 0:00:30]} Qc8 {[%emt 0:07:00]} 14. Bxb7 {[%emt 0:02:30]} Qxb7 {[%emt 0:00:30]} 15. Qf3 {[%emt 0:00:30]} Ra7 {[%emt 0:04:30]} 16. Ne4 {[%emt 0:02:30]} Nd7 {[%emt 0:05:30]} 17. Rd1 {[%emt 0:04:30]} Nf5 {[%emt 0:06:30]} 18. Be3 {[%emt 0:08:30]} d5 {[%emt 0:10:30]} 19. Ng3 {[%emt 0:11:30]} Nxe3 {[%emt 0:02:30]} 20. fxe3 {[%emt 0:00:30]} c5 {[%emt 0:00:30]} 21. dxc5 {[%emt 0:05:30]} Nxc5 {[%emt 0:00:30]} 22. Ne2 {[%emt 0:04:30]} Qb5 {[%emt 0:03:30]} 23. Ra3 {[%emt 0:04:30]} Rb7 {[%emt 0:01:30]} 24. Nd4 {[%emt 0:01:30]} Qc4 {[%emt 0:04:30]} 25. Qf1 {[%emt 0:02:30]} Bh6 {[%emt 0:00:30]} 26. Qxc4 {[%emt 0:00:30]} Bxe3+ {[%emt 0:00:30]} 27. Kf1 {[%emt 0:00:30]} dxc4 {[%emt 0:00:30]} 28. Ndc2 {[%emt 0:00:30]} Bg5 {[%emt 0:00:30]} 29. Rd4 {[%emt 0:04:30]} Nb3 {[%emt 0:07:30]} 30. Rd6 {[%emt 0:00:30]} Rd8 {[%emt 0:00:30]} 31. Rxd8+ {[%emt 0:02:30]} Bxd8 {[%emt 0:03:30]} 32. Nc6 {[%emt 0:05:30]} Bc7 {[%emt 0:00:30]} 33. N2b4 {[%emt 0:00:30]} Rb5 {[%emt 0:00:30]} 34. Nxa6 {[%emt 0:04:30]} Bxa5 {[%emt 0:01:30]} 35. Ra4 {[%emt 0:02:30]} Bb6 {[%emt 0:07:04]} 36. Rb4 {[%emt 0:04:37]} Rf5+ {[%emt 0:00:40]} 37. Ke1 {[%emt 0:00:31]} Bf2+ {[%emt 0:00:23]} 38. Ke2 {[%emt 0:02:52]} Kg7 {[%emt 0:00:00]} 39. Rxc4 {[%emt 0:02:54]} Bg1 {[%emt 0:00:23]} 40. Rb4 {[%emt 0:02:57]} Rf2+ {[%emt 0:00:30]} 41. Kd3 {[%emt 0:00:16]} Rxb2 {[%emt 0:00:30]} 42. Kc4 {[%emt 0:01:34]} Nd2+ {[%emt 0:05:29]} 43. Kb5 {[%emt 0:00:21]} Rc2 {[%emt 0:00:14]} 44. Nd4 {[%emt 0:01:41]} Bxd4 {[%emt 0:01:33]} 45. Rxd4 {[%emt 0:00:16]} Nb1 {[%emt 0:00:27]} 46. c4 {[%emt 0:00:25]} e5 {[%emt 0:00:32]} 47. Rh4 {[%emt 0:01:00]} e4 {[%emt 0:01:03]} 48. Rh3 {[%emt 0:01:08]} Nc3+ {[%emt 0:00:44]} 49. Kb4 {[%emt 0:00:38]} Nd1 {[%emt 0:00:34]} 50. Nc5 {[%emt 0:01:47]} e3 {[%emt 0:01:06]} 51. Nd3 {[%emt 0:01:06]} e2 {[%emt 0:01:00]} 52. Rf3 {[%emt 0:03:12]} Nb2 {[%emt 0:01:34]} 53. Ne1 {[%emt 0:00:42]} Rc1 0-1

[Event "IM Marmaris Karia VIII 2019"]
[Site "Marmaris"]
[Date "2019.07.31"]
[Round "9.5"]
[White "Caputcuoglu, Zeki Berke"]
[Black "Sibashvili, Giorgi"]
[Result "1/2-1/2"]
[ECO "D46"]
[WhiteElo "2010"]
[BlackElo "2389"]
[Annotator "NA"]
[PlyCount "55"]
[EventDate "2019.07.29"]
[EventType "schev"]
[EventCountry "TUR"]
[SourceTitle "playchess.com"]
[Source "ChessBase"]
[SourceQuality "1"]
[TimeControl "5400+30"]

1. Nf3 {[%emt 0:00:30]} d5 {[%emt 0:08:30]} 2. d4 {[%emt 0:00:30]} Nf6 {[%emt 0:02:30]} 3. c4 {[%emt 0:00:30]} e6 {[%emt 0:00:00]} 4. Nc3 {[%emt 0:00:30]} c6 $11 {[%emt 0:00:00]} 5. e3 {[%emt 0:00:30]} Nbd7 {[%emt 0:00:30]} 6. Qc2 {[%emt 0:00:30]} Bd6 {[%emt 0:00:30]} 7. Be2 {[%emt 0:00:30]} O-O {[%emt 0:01:30]} 8. O-O {[%emt 0:00:00]} dxc4 {[%emt 0:07:30]} 9. Bxc4 {[%emt 0:00:00]} e5 {[%emt 0:00:00]} 10. Bb3 {[%emt 0:02:30]} Qe7 {[%emt 0:05:00]} 11. h3 {[%emt 0:00:30]} Bb8 {[%emt 0:02:30]} 12. Rd1 {[%emt 0:09:30]} h6 {[%emt 0:02:30]} 13. Nh4 {[%emt 0:08:30]} Rd8 {[%emt 0:00:30]} 14. Nf5 {[%emt 0:01:30]} Qe8 {[%emt 0:01:30]} 15. Ne4 {[%emt 0:15:30]} Nxe4 {[%emt 0:02:30]} 16. Qxe4 {[%emt 0:00:30]} Nf6 {[%emt 0:00:00]} 17. Nxh6+ {[%emt 0:00:30]} Kf8 {[%emt 0:06:00]} 18. Qh4 {[%emt 0:00:30]} Be6 {[%emt 0:01:30]} 19. e4 {[%emt 0:10:30]} Rxd4 {[%emt 0:02:30]} 20. Bg5 {[%emt 0:05:30]} Ng8 {[%emt 0:12:30]} 21. Nf5 {[%emt 0:06:30]} Bxf5 {[%emt 0:01:30]} 22. Rxd4 {[%emt 0:00:30]} exd4 {[%emt 0:00:30]} 23. exf5 {[%emt 0:00:30]} Qe5 {[%emt 0:01:30]} 24. Bf4 {[%emt 0:00:30]} Qf6 {[%emt 0:00:30]} 25. Bg5 {[%emt 0:03:30]} Qe5 {[%emt 0:09:30]} 26. Bf4 {[%emt 0:01:30]} Qf6 {[%emt 0:04:30]} 27. Bg5 {[%emt 0:00:30]} Qe5 {[%emt 0:00:30]} 28. Bf4 {[%emt 0:00:00]} 1/2-1/2

[Event "IM Marmaris Karia VIII 2019"]
[Site "Marmaris"]
[Date "2019.07.31"]
[Round "10.1"]
[White "Rzayev, Bahruz"]
[Black "Dedebas, Emre Emin"]
[Result "1-0"]
[ECO "A07"]
[WhiteElo "2340"]
[BlackElo "2301"]
[Annotator "NA"]
[PlyCount "53"]
[EventDate "2019.07.29"]
[EventType "schev"]
[EventCountry "TUR"]
[SourceTitle "playchess.com"]
[Source "ChessBase"]
[SourceQuality "1"]
[TimeControl "5400+30"]

1. Nf3 {[%emt 0:00:30]} d5 {[%emt 0:00:30]} 2. g3 {[%emt 0:00:00]} Nf6 {[%emt 0:00:30]} 3. Bg2 {[%emt 0:00:00]} e6 {[%emt 0:00:00]} 4. O-O {[%emt 0:00:00]} Be7 {[%emt 0:00:00]} 5. d3 {[%emt 0:00:00]} O-O {[%emt 0:00:00]} 6. Nbd2 {[%emt 0:00:30]} Nc6 {[%emt 0:00:00]} 7. e4 {[%emt 0:00:00]} dxe4 {[%emt 0:00:30]} 8. dxe4 {[%emt 0:00:00]} e5 {[%emt 0:00:00]} 9. c3 {[%emt 0:01:30]} a5 {[%emt 0:00:00]} 10. Qe2 {[%emt 0:00:00]} Bc5 {[%emt 0:02:30]} 11. Nc4 {[%emt 0:00:00]} Qe7 {[%emt 0:00:30]} 12. Ne3 {[%emt 0:00:30]} Bxe3 {[%emt 0:11:30]} 13. Qxe3 {[%emt 0:00:30]} h6 {[%emt 0:23:30]} 14. a4 {[%emt 0:13:30]} Qe6 {[%emt 0:11:30]} 15. Nh4 {[%emt 0:02:30]} b6 {[%emt 0:06:30]} 16. Nf5 {[%emt 0:00:30]} Ne7 {[%emt 0:01:30]} 17. Nxg7 {[%emt 0:16:30]} Kxg7 {[%emt 0:04:30]} 18. Qxh6+ {[%emt 0:00:30]} Kg8 {[%emt 0:00:00]} 19. Bg5 {[%emt 0:00:00]} Ng6 {[%emt 0:01:00]} 20. f4 {[%emt 0:00:00]} Ng4 {[%emt 0:04:30]} 21. Qh3 {[%emt 0:00:00]} Qc6 {[%emt 0:19:31]} 22. f5 {[%emt 0:00:00]} Qc5+ {[%emt 0:05:03]} 23. Kh1 {[%emt 0:00:30]} Nf2+ {[%emt 0:00:44]} 24. Rxf2 {[%emt 0:00:00]} Qxf2 {[%emt 0:00:01]} 25. Rf1 {[%emt 0:00:00]} Qe2 {[%emt 0:03:38]} 26. Qh6 {[%emt 0:00:30]} Nh8 {[%emt 0:00:33]} 27. f6 {[%emt 0:00:00]} 1-0

[Event "IM Marmaris Karia VIII 2019"]
[Site "Marmaris"]
[Date "2019.07.31"]
[Round "10.3"]
[White "Benidze, Davit"]
[Black "Karaoglan, Doruk"]
[Result "1-0"]
[ECO "A26"]
[WhiteElo "2469"]
[BlackElo "2278"]
[Annotator "ChessBase"]
[PlyCount "79"]
[EventDate "2019.07.29"]
[EventType "schev"]
[EventCountry "TUR"]
[SourceTitle "playchess.com"]
[Source "ChessBase"]
[SourceQuality "1"]
[TimeControl "5400+30"]

1. Nf3 {[%emt 0:00:30]} Nf6 {[%emt 0:00:30]} 2. g3 {[%emt 0:00:00]} g6 {[%emt 0:00:00]} 3. Bg2 {[%emt 0:00:00]} Bg7 {[%emt 0:00:00]} 4. O-O {[%emt 0:00:00]} O-O {[%emt 0:00:00]} 5. c4 {[%emt 0:00:00]} d6 {[%emt 0:00:00]} 6. Nc3 {[%emt 0:00:30]} Nc6 {[%emt 0:00:30]} 7. Rb1 {[%emt 0:00:00]} e5 {[%emt 0:07:30]} 8. d3 {[%emt 0:01:00]} Nh5 {[%emt 0:01:30]} 9. b4 {[%emt 0:00:30]} f5 {[%emt 0:00:30]} 10. b5 {[%emt 0:00:30]} Ne7 {[%emt 0:00:30]} 11. Qc2 {[%emt 0:03:30]} h6 {[%emt 0:01:30]} 12. a4 {[%emt 0:00:00]} Rb8 {[%emt 0:00:30]} 13. Ba3 {[%emt 0:05:00]} b6 {[%emt 0:05:30]} 14. Nd2 {[%emt 0:04:30]} g5 {[%emt 0:00:30]} 15. Nd5 {[%emt 0:01:30]} g4 {[%emt 0:04:30]} 16. e3 {[%emt 0:00:30]} f4 {[%emt 0:06:30]} 17. exf4 {[%emt 0:01:30]} exf4 {[%emt 0:00:00]} 18. Nxe7+ {[%emt 0:00:30]} Qxe7 {[%emt 0:00:00]} 19. Rfe1 {[%emt 0:00:30]} Qg5 {[%emt 0:02:30]} 20. Bd5+ {[%emt 0:01:30]} Kh8 {[%emt 0:00:00]} 21. Ne4 {[%emt 0:00:30]} Qg6 {[%emt 0:00:00]} 22. Bb2 {[%emt 0:01:30]} Bd7 {[%emt 0:07:30]} 23. a5 {[%emt 0:00:30]} Rbe8 {[%emt 0:08:30]} 24. axb6 {[%emt 0:00:30]} axb6 {[%emt 0:00:00]} 25. Ra1 {[%emt 0:01:30]} Re7 {[%emt 0:01:00]} 26. Ra7 {[%emt 0:02:30]} Be8 {[%emt 0:07:30]} 27. Qd2 {[%emt 0:02:30]} Bxb2 {[%emt 0:06:30]} 28. Qxb2+ {[%emt 0:00:00]} Ng7 {[%emt 0:00:30]} 29. gxf4 {[%emt 0:02:00]} Rxf4 {[%emt 0:01:30]} 30. Qd2 {[%emt 0:01:30]} Rf3 {[%emt 0:01:30]} 31. Ra8 {[%emt 0:04:30]} Kh7 {[%emt 0:12:30]} 32. Ng3 {[%emt 0:00:30]} Qg5 {[%emt 0:07:00]} 33. Qd1 {[%emt 0:04:30]} Rf4 {[%emt 0:01:56]} 34. Rxe7 {[%emt 0:02:30]} Qxe7 {[%emt 0:00:02]} 35. Qe2 {[%emt 0:00:00]} Qxe2 {[%emt 0:01:23]} 36. Nxe2 {[%emt 0:00:00]} Rf6 {[%emt 0:01:36]} 37. Rc8 {[%emt 0:00:30]} Bf7 {[%emt 0:02:40]} 38. Be4+ {[%emt 0:00:00]} Bg6 {[%emt 0:00:05]} 39. Rxc7 {[%emt 0:00:00]} Bxe4 {[%emt 0:01:10]} 40. dxe4 {[%emt 0:00:30]} 1-0

[Event "IM Marmaris Karia VIII 2019"]
[Site "Marmaris"]
[Date "2019.07.31"]
[Round "10.4"]
[White "Sibashvili, Giorgi"]
[Black "Yazici, Ugur Doga"]
[Result "0-1"]
[ECO "E54"]
[WhiteElo "2389"]
[BlackElo "2143"]
[Annotator "NA"]
[PlyCount "88"]
[EventDate "2019.07.29"]
[EventType "schev"]
[EventCountry "TUR"]
[SourceTitle "playchess.com"]
[Source "ChessBase"]
[SourceQuality "1"]
[TimeControl "5400+30"]

1. d4 {[%emt 0:00:30]} d5 {[%emt 0:00:30]} 2. c4 {[%emt 0:00:30]} dxc4 {[%emt 0:00:30]} 3. Nf3 {[%emt 0:00:30]} Nf6 {[%emt 0:00:00]} 4. e3 {[%emt 0:00:30]} e6 {[%emt 0:00:00]} 5. Bxc4 {[%emt 0:00:30]} c5 {[%emt 0:00:30]} 6. O-O {[%emt 0:00:30]} cxd4 {[%emt 0:00:30]} 7. exd4 {[%emt 0:03:30]} Be7 {[%emt 0:00:00]} 8. Nc3 {[%emt 0:00:00]} O-O {[%emt 0:00:00]} 9. Bg5 {[%emt 0:02:00]} Nc6 {[%emt 0:00:30]} 10. a3 {[%emt 0:03:30]} b6 {[%emt 0:00:30]} 11. Qe2 {[%emt 0:03:30]} Bb7 {[%emt 0:01:30]} 12. Rfd1 {[%emt 0:01:30]} Na5 {[%emt 0:00:30]} 13. Ba2 {[%emt 0:04:30]} Re8 {[%emt 0:12:30]} 14. b4 {[%emt 0:17:30]} Nc6 {[%emt 0:00:30]} 15. Rac1 {[%emt 0:04:30]} Nd5 {[%emt 0:05:30]} 16. Nxd5 {[%emt 0:01:30]} Bxg5 {[%emt 0:00:30]} 17. Ne3 {[%emt 0:05:30]} Bf4 {[%emt 0:26:30]} 18. d5 {[%emt 0:04:30]} exd5 {[%emt 0:00:30]} 19. Bxd5 {[%emt 0:00:30]} Qf6 {[%emt 0:00:30]} 20. Qc4 {[%emt 0:17:30]} Bxe3 {[%emt 0:08:30]} 21. fxe3 {[%emt 0:00:00]} Nd8 {[%emt 0:01:30]} 22. e4 {[%emt 0:08:55]} Bxd5 {[%emt 0:02:30]} 23. exd5 {[%emt 0:00:19]} Nb7 {[%emt 0:00:00]} 24. Qd4 {[%emt 0:01:25]} Qxd4+ {[%emt 0:01:00]} 25. Nxd4 {[%emt 0:00:36]} Nd6 {[%emt 0:01:30]} 26. Rc6 {[%emt 0:00:46]} Red8 {[%emt 0:00:30]} 27. a4 {[%emt 0:03:13]} Rd7 {[%emt 0:03:30]} 28. a5 {[%emt 0:01:50]} bxa5 {[%emt 0:00:30]} 29. bxa5 {[%emt 0:00:04]} a6 {[%emt 0:00:30]} 30. Nb3 {[%emt 0:01:04]} Ne4 {[%emt 0:04:30]} 31. Rd4 {[%emt 0:01:29]} f5 {[%emt 0:00:30]} 32. g4 {[%emt 0:00:53]} g6 {[%emt 0:00:30]} 33. gxf5 {[%emt 0:00:30]} gxf5 {[%emt 0:00:30]} 34. Nd2 {[%emt 0:00:30]} Nd6 {[%emt 0:01:30]} 35. Nf3 {[%emt 0:01:37]} Nb7 {[%emt 0:01:30]} 36. Ne5 {[%emt 0:01:19]} Rg7+ {[%emt 0:02:30]} 37. Kf2 {[%emt 0:00:01]} Nxa5 {[%emt 0:00:30]} 38. Rb6 {[%emt 0:00:49]} Nb7 {[%emt 0:00:30]} 39. d6 {[%emt 0:00:17]} Nc5 {[%emt 0:00:30]} 40. d7 {[%emt 0:01:05]} Rd8 {[%emt 0:02:30]} 41. Rb8 {[%emt 0:01:50]} Ne6 {[%emt 0:00:30]} 42. Rc8 {[%emt 0:00:23]} Rgxd7 {[%emt 0:04:39]} 43. Rxd7 {[%emt 0:00:32]} Rxc8 {[%emt 0:00:05]} 44. Rd6 {[%emt 0:00:03]} Nc5 {[%emt 0:00:40]} 0-1

[Event "IM Marmaris Karia VIII 2019"]
[Site "Marmaris"]
[Date "2019.07.31"]
[Round "10.5"]
[White "Odeev, Handszar"]
[Black "Caputcuoglu, Zeki Berke"]
[Result "1/2-1/2"]
[ECO "B43"]
[WhiteElo "2360"]
[BlackElo "2010"]
[Annotator "ChessBase"]
[PlyCount "20"]
[EventDate "2019.07.29"]
[EventType "schev"]
[EventCountry "TUR"]
[SourceTitle "playchess.com"]
[Source "ChessBase"]
[SourceQuality "1"]
[TimeControl "5400+30"]

1. e4 {[%emt 0:00:30]} c5 {[%emt 0:00:30]} 2. Nf3 {[%emt 0:00:00]} e6 {[%emt 0:00:00]} 3. d4 {[%emt 0:00:00]} cxd4 {[%emt 0:00:00]} 4. Nxd4 {[%emt 0:00:00]} a6 {[%emt 0:00:00]} 5. Nc3 {[%emt 0:00:00]} b5 {[%emt 0:00:00]} 6. Bd3 {[%emt 0:00:30]} Qb6 {[%emt 0:00:00]} 7. Nf3 {[%emt 0:00:00]} Qc7 {[%emt 0:00:00]} 8. Nd4 {[%emt 0:00:00]} Qb6 {[%emt 0:00:30]} 9. Nf3 {[%emt 0:00:00]} Qc7 {[%emt 0:00:00]} 10. Nd4 {[%emt 0:00:00]} Qb6 {[%emt 0:00:00]} 1/2-1/2